Workbook

Sheet Read Me
A1: Air Pollution Control Cost Estimation Spreadsheet
A2: For Selective Non-Catalytic Reduction (SNCR)
A3: U.S. Environmental Protection Agency
A4: Air Economics Group
A5: Health and Environmental Impacts Division
A6: Office of Air Quality Planning and Standards
A7: (May 2016)
B9: This spreadsheet allows users to estimate the capital and annualized costs for installing and operating a Selective Non-Catalytic Reduction (SNCR) control device. SNCR is a post-combustion control technology for reducing NOx emissions by injecting an ammonia-base reagent (urea or ammonia) into the furnace at a location where the temperature is in the appropriate range for ammonia radicals to react with NOx to form nitrogen and water.
B11: The calculation methodologies used in this spreadsheet are those presented in the U.S. EPA's Air Pollution Control Cost Manual. This spreadsheet is intended to be used in combination with the SNCR chapter and cost estimation methodology in the Control Cost Manual. For a detailed description of the SNCR control technology and the cost methodologoies, see Section 4, Chapter 1 of the Air Pollution Control Cost Manual (as updated in 2016). A copy of the Control Cost Manual is available on the U.S. EPA's "Technology Transfer Network" website at: http://www3.epa.gov/ttn/catc/products.html#cccinfo.
B13: The spreadsheet can be used to estimate capital and annualized costs for applying SNCR, and particularly to the following types of combustion units:
B15: (1) | C15: Coal-fired utility boilers with full load capacities greater than or equal to 25 MW.
B16: (2) | C16: Fuel oil- and natural gas-fired utility boilers with full load capacities greater than or equal to 25 MW.
B17: (3) | C17: Coal-fired industrial boilers with maximum heat input capacities greater than or equal to 250 MMBtu/hour.
B18: (4) | C18: Fuel oil- and natural gas-fired industrial boilers with maximum heat input capacities greater than or equal to 250 MMBtu/hour.
B20: The methodology used in this spreadsheet is based on the U.S. EPA Clean Air Markets Division (CAMD)'s Integrated Planning Model (IPM). The size and costs of the SNCR are based primarily on four parameters: the boiler size or heat input, the type of fuel burned, the required level of NOx reduction, and the reagent consumption. This approach provides study-level estimates (±30%) of SNCR capital and annual costs. Default data in the spreadsheet is taken from the SNCR Control Cost Manual and other sources such as the U.S. Energy Information Administration (EIA). The actual costs may vary from those calculated here due to site-specific conditions, such as the boiler configuration and fuel type. Selection of the most cost-effective control option should be based on a detailed engineering study and cost quotations from system suppliers. For additional information regarding the IPM, see the EPA Clean Air Markets webpage at http://www.epa.gov/airmarkets/power-sector-modeling. The Agency wishes to note that all spreadsheet data inputs other than default data are merely available to show an example calculation.
B22: Instructions
B23: Step 1: Please select on the Data Inputs tab and click on the Reset Form button. This will reset the NSR, plant elevation, estimated equipment life, desired dollar year, cost index (to match desired dollar year), annual interest rate, unit costs for fuel, electricity, reagent, water and ash disposal, and the cost factors for maintenance cost and administrative charges. All other data entry fields will be blank.
B24: Step 2: Select the type of combustion unit (utility or industrial) using the pull down menu. Indicate whether the SNCR is for new construction or retofit of an existing boiler. If the SNCR will be installed on an existing boiler, enter a retrofit factor equal to or greater than 0.84. Use 1 for retrofits with an average level of difficulty. For the more difficult retrofits, you may use a retrofit factor greater than 1; however, you must document why the value used is appropriate.
B25: Step 3: Select the type of fuel burned (coal, fuel oil, and natural gas) using the pull down menu. If you selected coal, select the type of coal burned from the drop down menu. The NOx emissions rate, weight percent coal ash and NPHR will be pre-populated with default factors based on the type of coal selected. However, we encourage you to enter your own values for these parameters, if they are known, since the actual fuel parameters may vary from the default values provided.
B26: Step 4: Complete all of the cells highlighted in yellow. As noted in step 1 above, some of the highlighted cells are pre-populated with default values based on 2014 data. Users should document the source of all values entered in accordance with what is recommended in the Control Cost Manual, and the use of actual values other than the default values in this spreadsheet, if appropriately documented, is acceptable. You may also adjust the maintenance and administrative charges cost factors (cells highlighted in blue) from their default values of 0.015 and 0.03, repectively. The default values for these two factors were developed for the CAMD Integrated Planning Model (IPM). If you elect to adjust these factors, you must document why the alternative values used are appropriate.
B27: Step 5: Once all of the data fields are complete, select the SNCR Design Parameters tab to see the calculated design parameters and the Cost Estimate tab to view the calculated cost data for the installation and operation of the SNCR.

Sheet Data Inputs
A1: Data Inputs
A3: Enter the following data for your combustion unit:
A4: Is the combustion unit a utility or industrial boiler? | F4: What type of fuel does the unit burn?
A5: Is the SCR for a new boiler or retrofit of an existing boiler?
A7: =IF(S8=3, "Please enter a retrofit factor equal to or greater than 0.84 based on the level of difficulty. Enter 1 for projects of average retrofit difficulty.", " ") -> Please enter a retrofit factor equal to or greater than 0.84 based on the level of difficulty. Enter 1 for projects of average retrofit difficulty. | D7: 1.5 | E7: =IF(D7>1, "* NOTE: You must document why a retrofit factor of "&D7&" is appropriate for the proposed project.", " ") -> * NOTE: You must document why a retrofit factor of 1.5 is appropriate for the proposed project.
A8: Complete all of the highlighted data fields: | P8: 3 | Q8: Utility | R8: New Construction | S8: 3
F9: Provide the following information for coal-fired boilers: | Q9: Industrial | R9: Retrofit
B10: What is the maximum heat input rate (QB)? | C10: 230 | D10: MMBtu/hour | F10: Type of coal burned: | T10: SO2 Emission Rate (lbs SO2/MMBtu) = | V10: =((I12/100)*(64/32)*1000000)/C12 -> 0.3421052632
Q11: < 3lb/MMBtu | R11: Bituminous | T11: SO2 Emission Rate | V11: =IF(I12=" ",P12,(IF(V10<3,2,(IF(V10>3,3))))) -> 2
B12: What is the higher heating value (HHV) of the fuel? | C12: =L22 -> 7600 | D12: Btu/lb | F12: Enter the sulfur content (%S) = | I12: =J22 -> 0.13 | J12: percent by weight | P12: 4 | Q12: ≥ 3lb/MMBtu | R12: Sub-Bituminous | S12: 3
B13: =IF(OR(C12=C73, C12=1030,C12=11814,C12=6534,C12=8730,C12=139713),"*HHV value of "&C12&" "&D12&" is a default value. See below for data source. Enter actual HHV for fuel burned, if known. "," ") ->  | F13: or Select the appropriate SO2 emission rate: | Q13: Not Applicable | R13: Lignite
B14: What is the estimated actual annual fuel consumption? | C14: =300000/6*2000 -> 100000000 | D14: lbs/year | G14: =IF(OR(I12=C71,I12=0.91,I12=0.31,I12=2.35),"*The sulfur content of "&I12&"% is a default value. See below for data source. Enter actual value, if known.",(IF(OR(V11=P12,P12=1,P12=4)," ",(IF(AND(V11=3,P12=2),"*Error! Based on the %S value entered, the sulfur dioxide emission rate is > 3 lb/MMBtu. Please correct sulfur content or emission rate, as appropriate.",(IF(AND(V11=2,P12=3),"Error! Based on the %S value entered, the sulfur dioxide emission rate is < 3 lb/MMBtu. Please correct sulfur content or emission rate, as appropriate."," "))))))) ->  | R14: Coal blend
F15: Ash content (%Ash): | I15: =K22 -> 6.5 | J15: percent by weight | R15: Not Applicable
B16: Is the boiler a fluid-bed boiler? | G16: =IF(OR(I15=C72, I15=10.4,I15=5.8,I15=14.3),"*The ash content of "&I15&"% is a default value. See below for data source. Enter actual value, if known."," ") ->  | Q16: Coal
F17: For units burning coal blends: | P17: 2 | Q17: Fuel Oil
B18: Enter the net plant heat input rate (NPHR) | C18: 10 | D18: MMBtu/MW | G18: Note: The table below is pre-populated with default values for HHV, %S, %Ash and cost. Please enter the actual values for these parameters in the table below. If the actual value for any parameter is not known, you may use the default values provided. | Q18: Natural Gas
I20: Fraction in Coal Blend | J20: %S | K20: %Ash | L20: HHV (Btu/lb) | M20: Fuel Cost ($/MMBtu)
B21: If the NPHR is not known, use the default NPHR value: | C21: Fuel Type | D21: Default NPHR | G21: Bituminous | I21: 0 | J21: 2.35 | K21: 10.4 | L21: 11814 | M21: 2.79
C22: Coal | D22: 10 MMBtu/MW | G22: Sub-Bituminous | I22: 1 | J22: 0.13 | K22: 6.5 | L22: 7600 | M22: =84.42/2000/L22*1000000 -> 5.553947368
C23: Fuel Oil | D23: 11 MMBtu/MW | G23: Lignite | I23: 0 | J23: 0.91 | K23: 14.3 | L23: 6534 | M23: 1.85
C24: Natural Gas | D24: 8.2 MMBtu/MW
G25: Please click the calculate button to calculate weighted values based on the data in the table above. | P25: 3 | Q25: Yes
P26: Note: If P25= Yes, then BTF = 0.75 for fluid bed boilers; Else BTF=1 | Q26: No
A29: Enter the following design parameters for the proposed SNCR:
B31: Number of days the SNCR operates (tSNCR) | C31: =0.6*365 -> 219 | D31: days | G31: Plant Elevation | I31: 450 | J31: Feet above sea level
B32: Inlet NOx Emissions (NOxin) to SNCR | C32: 0.46 | D32: lb/MMBtu
B33: NOx Removal Efficiency (EF) provided by vendor (Enter "UNK" if value is not known) | C33: 50 | D33: percent
B34: Estimated Normalized Stoichiometric Ratio (NSR) | C34: 1.05 | E34: =IF(C34=1.05, "*The NSR value of "&C34&" is a default value. User should enter actual value, if known.", " ") -> *The NSR value of 1.05 is a default value. User should enter actual value, if known.
B36: Concentration of reagent as stored (Cstored) | C36: 50 | D36: ="percent"&(IF(B66<>" ","*", " ")) -> percent* | E36: =IF(D66="Not applicable", " ", "*The reagent concentration of 50% is a default value. User should enter actual value, if known.") -> *The reagent concentration of 50% is a default value. User should enter actual value, if known.
B37: Denisty of reagent as stored (ρstored) | C37: 71 | D37: lb/ft3
B38: Concentration of reagent injected (Cinj) | C38: 50 | D38: percent | H38: Densities of typical SNCR reagents:
B39: Number of days reagent is stored (tstorage) | C39: 30 | D39: days | H39: 50% urea solution | J39: 71 | K39: lbs/ft3
B40: Estimated equipment life | C40: 10 | D40: Years | H40: 29.4% aqueous NH3 | J40: 56 | K40: lbs/ft3 | Q40: Urea
H41: 19% aqueous NH3 | J41: 58 | K41: lbs/ft3 | P41: 1 | Q41: Ammonia
B42: Select the reagent used
A45: Enter the cost data for the proposed SNCR:
B47: Desired dollar-year | C47: 2016
B48: ="CEPCI for " & C47 -> CEPCI for 2016 | C48: 536.4 | D48: =IF(C47=2014," ","Enter the CEPCI value for "&C47) -> Enter the CEPCI value for 2016 | F48: 584.6 | G48: 2012 CEPCI | I48: CEPCI = Chemical Engineering Plant Cost Index
B49: Annual Interest Rate (i) | C49: 7 | D49: Percent
B50: Fuel (Costfuel) | C50: =M22 -> 5.553947368 | D50: ="$/MMBtu"&(IF(OR(C50=C69,C50=5.14,C50=20.01, C50=2.79,C50=2.04, C50=1.85),"*"," ")) -> $/MMBtu
B51: Reagent (Costreag) | C51: 1.62 | D51: ="$/gallon for a "&C36&" percent solution of "&(IF(P41=1,"urea",(IF(P41=2,"ammonia", " "))))&(IF(C51=1.62,"*"," ")) -> $/gallon for a 50 percent solution of urea*
B52: Water (Costwater) | C52: =20.1476/1000 -> 0.0201476 | D52: ="$/gallon"&(IF(C52=0.0088, "*"," ")) -> $/gallon
B53: Electricity (Costelect) | C53: 0.2671 | D53: ="$/kWh"&(IF(OR(C53=0.071, C53=0.039), "*"," ")) -> $/kWh
B54: Ash Disposal (for coal-fired boilers only) (Costash) | C54: 18 | D54: ="$/ton"&(IF(C54=18, "*","")) -> $/ton*
C55: =IF(OR(C50=C69, C50=5.14, C50=20.01, C50=2.79, C50=2.04, C50=1.85,C51=1.62, C52=0.0088,C53=0.039, C53=0.071, C54=18),"* The values marked are default values. See the table below for the default values used and their references. Enter actual values, if known."," ") -> * The values marked are default values. See the table below for the default values used and their references. Enter actual values, if known.
B56: Note: The use of CEPCI in this spreadsheet is not an endorsement of the index, but is there merely to allow for availability of a well-known cost index to spreadsheet users. Use of other well-known cost indexes (e.g., M&S) is acceptable.
A58: Maintenance and Administrative Charges Cost Factors:
C59: 0.015
B60: Maintenance Cost Factor (MCF) = | C60: 0.015 | D60: =IF(C60>0.015,"*MCF is greater than the IPM default value of 0.015. User must document why the value entered is appropriate.",(IF(C60<0.015,"*MCF is less than the IPM default value of 0.015. User must document why the value entered is appropriate."," "))) -> 
B61: Administrative Charges Factor (ACF) = | C61: 0.03 | D61: =IF(C61>0.03,"*ACF is greater than the IPM default value of 0.03. User must document why the value entered is appropriate.",(IF(C61<0.03,"*ACF is less than the IPM default value of 0.03. User must document why the value entered is appropriate."," "))) -> 
O62: =20.1476/1000 -> 0.0201476
A63: Data Sources for Default Values Used in Calculations:
B65: Data Element | C65: Default Value | D65: Sources for Default Value | J65: If you used your own site-specific values, please enter the the value used and the reference source . . . | O65: Recommended data sources for site-specific information
B66: Reagent Cost | C66: $1.62/gallon of 50% urea solution | D66: Based on vendor quotes collected in 2014. | O66: Check with reagent vendors for current prices.
B67: Water Cost ($/gallon) | C67: 0.0088 | D67: Average combined water/wastewater rates for industrial facilities in 2013 compiled by Black & Veatch. (see 2012/2013 "50 Largest Cities Water/Wastewater Rate Survey." Available at http://www.saws.org/who_we_are/community/RAC/docs/2014/50-largest-cities-brochure-water-wastewater-rate-survey.pdf. | J67: Per Asish Agrwal 4/21/17, $20.1476/1000gal | O67: Plant's utiility bill or Black & Veatch's "50 Largest Cities Water/Wastewater Rate Survey." Available at http://www.saws.org/who_we_are/community/RAC/docs/2014/50-largest-cities-brochure-water-wastewater-rate-survey.pdf. .
B68: Electricity Cost ($/kWh) | C68: 0.039 | D68: =IF(P8=3, "Average annual electricity cost for industrial plants is based on 2014 price data compiled by the U.S. Energy Information Administration (EIA) from data reported on EIA Form EIA-861 and 861S, (http://www.eia.gov/electricity/data.cfm#sales).", "Average annual electricity cost for utilities is based on 2014 electricity production cost data for fossil-fuel plants compiled by the U.S. Energy Information (EIA). Available at http://www.eia.gov/tools/faqs/faq.cfm?id=19&t=3.") -> Average annual electricity cost for industrial plants is based on 2014 price data compiled by the U.S. Energy Information Administration (EIA) from data reported on EIA Form EIA-861 and 861S, (http://www.eia.gov/electricity/data.cfm#sales). | J68: Asish Agrwal 4/21/17, 0.2671$/kwh | O68: Plant's utility bill or use U.S. Energy Information Administration (EIA) data for most recent year. Available at http://www.eia.gov/electricity/data.cfm#sales.
B69: Fuel Cost ($/MMBtu) | C69: 2.79 | D69: Weighted average cost based on average 2014 fuel cost data for power plants compiled by the U.S. Energy Information Administration (EIA) from data reported on EIA Form EIA-923, "Power Plant Operations Report." Available at http://www.eia.gov/electricity/data/eia923/. | J69: CHPP Jan 2016 report, $5.61 | O69: Check with fuel supplier or use U.S. Energy Information Administration (EIA) data for most recent year." Available at http://www.eia.gov/electricity/data/eia923/.
B70: Ash Disposal Cost ($/ton) | C70: 18 | D70: Average ash disposal costs based on U.S. coal data for 2014 compiled by the U.S. Energy Information Administration (EIA) from data reported on EIA Form EIA-923, Power Plant Operations Report. Available at http://www.eia.gov/electricity/data/eia923/. | O70: Check with fuel supplier or use U.S. Energy Information Administration (EIA) data for most recent year." Available at http://www.eia.gov/electricity/data/eia923/.
B71: Percent sulfur content for Coal (% weight) | C71: 0.31 | D71: Average sulfur content based on U.S. coal data for 2014 compiled by the U.S. Energy Information Administration (EIA) from data reported on EIA Form EIA-923, Power Plant Operations Report. Available at http://www.eia.gov/electricity/data/eia923/. | J71: From table D 2.10 citing Coal data sheet at http://www.usibelli.com/Coal_data.php lists sulfur content at 0.12-0.28 percent. | O71: Check with fuel supplier or use U.S. Energy Information Administration (EIA) data for most recent year." Available at http://www.eia.gov/electricity/data/eia923/.
B72: Percent ash content for Coal (% weight) | C72: 10.4 | D72: Average ash content based on U.S. coal data for 2014 compiled by the U.S. Energy Information Administration (EIA) from data reported on EIA Form EIA-923, Power Plant Operations Report. Available at http://www.eia.gov/electricity/data/eia923/. | J72: CHPP Jan 2016 report, 4.55 | O72: Check with fuel supplier or use U.S. Energy Information Administration (EIA) data for most recent year." Available at http://www.eia.gov/electricity/data/eia923/.
B73: Higher Heating Value (HHV) (Btu/lb) | C73: 11814 | D73: 2014 coal data compiled by the Office of Oil, Gas, and Coal Supply Statistics, U.S. Energy Information Administration (EIA) from data reported on EIA Form EIA-923, Power Plant Operations Report. Available at http://www.eia.gov/electricity/data/eia923/. | J73: D 2-7b from Doyon Tables, Usibelli.com/coal_data.php; 15.1 mmbtu/ton | O73: Fuel supplier or use U.S. Energy Information Administration (EIA) data for most recent year." Available at http://www.eia.gov/electricity/data/eia923/.

Sheet SNCR Design Parameters
A1: SNCR Design Parameters
A3: The following design parameters for the SNCR were calculated based on the values entered on the Data Inputs tab. These values were used to prepare the costs shown on the Cost Estimate tab.
A5: Parameter | B5: Equation | C5: Calculated Value | D5: Units
A6: Maximum Annual Heat Input Rate (QB) = | B6: =IF('Data Inputs'!P8=2,"Bmw x NPHR =", "HHV x Max. Fuel Rate =") -> HHV x Max. Fuel Rate = | C6: =IF('Data Inputs'!P8=2,('Data Inputs'!C10*'Data Inputs'!C18),'Data Inputs'!C10) -> 230 | D6: MMBtu/hour
A7: =IF('Data Inputs'!P8=2,"Maximum Annual MW Output (Bmw) =",(IF('Data Inputs'!P8=3,"Maximum Annual fuel consumption (mfuel) ="," "))) -> Maximum Annual fuel consumption (mfuel) = | B7: =IF('Data Inputs'!P8=2, "Bmw x 8760 = ", (IF('Data Inputs'!P8=3, "(QB x 1.0E6 x 8760)/HHV =", " "))) -> (QB x 1.0E6 x 8760)/HHV = | C7: =IF('Data Inputs'!P8=3,((('SNCR Design Parameters'!C6/'Data Inputs'!C12)*1000000)*8760),(IF('Data Inputs'!P8=2,('Data Inputs'!C10*8760)," "))) -> 265105263.2 | D7: ='Data Inputs'!D14 -> lbs/year
A8: =IF('Data Inputs'!P8=2,"Estimated Actual Annual MW Output (Boutput) =",(IF('Data Inputs'!P8=3,"Actual Annual fuel consumption (Mactual) ="," "))) -> Actual Annual fuel consumption (Mactual) = | C8: ='Data Inputs'!C14 -> 100000000 | D8: ='Data Inputs'!D14 -> lbs/year
A9: Heat Rate Factor (HRF) = | B9: NPHR/10 = | C9: ='Data Inputs'!C18/10 -> 1
A10: Total System Capacity Factor (CFtotal) = | B10: =IF('Data Inputs'!P8=2, "(Boutput/Bmw)*(tsncr/365) =", (IF('Data Inputs'!P8=3, "(Mactual/Mfuel) x (tSNCR/365) =", " "))) -> (Mactual/Mfuel) x (tSNCR/365) = | C10: =(C8/C7)*('Data Inputs'!C31/365) -> 0.2263251936 | D10: fraction
A11: Total operating time for the SNCR (top) = | B11: CFtotal x 8760 = | C11: =C10*8760 -> 1982.608696 | D11: hours
A12: NOx Removal Efficiency (EF) = | B12: =IF(OR('Data Inputs'!C33="UNK",'Data Inputs'!C33=" "),"22.554 x NOxinlet + 16.725=", "(Noxin - NOxout)/Noxin =") -> (Noxin - NOxout)/Noxin = | C12: =IF(OR('Data Inputs'!C33="UNK", 'Data Inputs'!C33=" "), ((22.554*'Data Inputs'!C32)+16.725), 'Data Inputs'!C33) -> 50 | D12: percent
A13: NOx removed per hour = | B13: NOxin x EF x QB = | C13: =(C12/100)*'Data Inputs'!C32*'SNCR Design Parameters'!C6 -> 52.9 | D13: lb/hour
A14: Total NOx removed per year = | B14: (NOxin x EF x QB x top)/2000 = | C14: =C13*C11/2000 -> 52.44 | D14: tons/year
A15: Coal Factor (CoalF) = | B15: 1 for bituminuous; 1.05 for sub-bituminous; 1.07 for lignite (weighted average is used for coal blends) | C15: =IF('Data Inputs'!P17=2, (IF('Data Inputs'!S12=2,1,(IF('Data Inputs'!S12=3,1.05,(IF('Data Inputs'!S12=4,1.07,L15)))))), " ") -> 1.05 | E15: =IF('Data Inputs'!P17<>2,"Not applicable; factor applies only to coal-fired boilers", " ") ->  | L15: =((1*'Data Inputs'!I21)+(1.05*'Data Inputs'!I22)+(1.07*'Data Inputs'!I23))/SUM('Data Inputs'!I21:I23) -> 1.05
A16: SO2 Emission rate = | B16: (%S/100)x(64/32)*1E6)/HHV = | C16: =IF('Data Inputs'!V11=2,"< 3",(IF('Data Inputs'!V11=3,"> 3"," "))) -> < 3 | D16: =IF('Data Inputs'!P17=2, "lbs/MMBtu", " ") -> lbs/MMBtu | E16: =IF('Data Inputs'!P17<>2,"Not applicable; factor applies only to coal-fired boilers", " ") -> 
A17: Elevation Factor (ELEVF) = | B17: 14.7 psia/P = | C17: =IF('Data Inputs'!I31<500, " ", (14.7/C18)) ->  | E17: =IF('Data Inputs'!I31<500, "Not applicable; elevation factor does not apply to plants located at elevations below 500 feet.", " ") -> Not applicable; elevation factor does not apply to plants located at elevations below 500 feet.
A18: =IF('Data Inputs'!I31=0,"Atmospheric pressure at sea level (P) =","Atmospheric pressure at "&'Data Inputs'!I31&" feet above sea level (P) =") -> Atmospheric pressure at 450 feet above sea level (P) = | B18: 2116x[(59-(0.00356xh)+459.7)/518.6]5.256 x (1/144)* = | C18: =(2116)*(((59-(0.00356*'Data Inputs'!I31)+459.7)/518.6)^5.256)*(1/144) -> 14.47212909 | D18: psia
A19: Retrofit Factor (RF) = | B19: =IF('Data Inputs'!S8=2,"New Construction",(IF('Data Inputs'!S8=3,"Retrofit to existing boiler"," "))) -> Retrofit to existing boiler | C19: =IF('Data Inputs'!S8=2,0.84,(IF('Data Inputs'!S8=3,'Data Inputs'!D7," "))) -> 1.5
A20: * Equation is from the National Aeronautics and Space Administration (NASA), Earth Atmosphere Model. Available at https://spaceflightsystems.grc.nasa.gov/education/rocket/atmos.html.
A21: Reagent Data:
A22: Type of reagent used | B22: =IF('Data Inputs'!P41=1,"Urea","Ammonia") -> Urea | C22: Molecular Weight of Reagent (MW) = | F22: =IF('Data Inputs'!P41=1, 60.06, 17.03) -> 60.06 | G22: g/mole | L22: =IF('Data Inputs'!P41=1,2,1) -> 2 | M22: =IF('Data Inputs'!P42=1,71,56) -> 56
E23: Density = | F23: ='Data Inputs'!C37 -> 71 | G23: lb/gallon
A25: Parameter | B25: Equation | C25: Calculated Value | D25: Units
A26: Reagent consumption rate (mreagent) = | B26: (NOxin x QB x NSR x MWR)/(MWNOx x SR) = | C26: =('Data Inputs'!C32*'SNCR Design Parameters'!C6*'Data Inputs'!C34*'SNCR Design Parameters'!F22)/(46.01*'SNCR Design Parameters'!L22) -> 72.50668768 | D26: lb/hour
B27: (whre SR = 1 for NH3; 2 for Urea
A28: Reagent Usage Rate (msol) = | B28: mreagent/Csol = | C28: =C26/('Data Inputs'!C36/100) -> 145.0133754 | D28: lb/hour
B29: (msol x 7.4805)/Reagent Density | C29: =(C28*7.481/F23) -> 15.2795079 | D29: gal/hour
A30: Estimated tank volume for reagent storage = | B30: (msol x 7.4805 x tstorage x 24)/Reagent Density = | C30: =C29*'Data Inputs'!C39*24 -> 11001.24569 | D30: ="gallons (storage needed to store a "& 'Data Inputs'!C39 &" day reagent supply)" -> gallons (storage needed to store a 30 day reagent supply)
A32: Capital Recovery Factor:
A34: Parameter | B34: Equation | C34: Calculated Value
A35: Capital Recovery Factor (CRF) = | B35: i (1+ i)n/(1+ i)n - 1 = | C35: =(('Data Inputs'!C49/100)*((1+'Data Inputs'!C49/100)^'Data Inputs'!C40))/(((1+'Data Inputs'!C49/100)^'Data Inputs'!C40)-1) -> 0.1423775027
B36: Where n = Equipment Life and i= Interest Rate
A38: Parameter | B38: Equation | C38: Calculated Value | D38: Units
A39: Electricity Usage:
A40: Electrcity Consumption (P) = | B40: (0.47 x NOxin x NSR x QB)/NPHR = | C40: =(0.47*'Data Inputs'!C32*'Data Inputs'!C34*'SNCR Design Parameters'!C6)/'Data Inputs'!C18 -> 5.22123 | D40: kW/hour
A42: Water Usage:
A43: Water consumption (qw) = | B43: (msol/Density of water) x ((Cstored/Cinj) - 1) = | C43: =(C28/8.345)*(('Data Inputs'!C36/'Data Inputs'!C38)-1) -> 0 | D43: gallons/hour
A45: Fuel Data:
A46: Additional Fuel required to evaporate water in injected reagent (ΔFuel) = | B46: Hv x mreagent x ((1/Cinj)-1) = | C46: =(900*C26*((100/'Data Inputs'!C38)-1))/1000000 -> 0.06525601891 | D46: MMBtu/hour
A48: Ash Disposal:
A49: Additional ash produced due to increased fuel consumption (Δash) = | B49: (Δfuel x %Ash x 1E6)/HHV = | C49: =IF('Data Inputs'!P17=2,(C46*('Data Inputs'!I15/100)*(1/'Data Inputs'!C12)*1000000), 0) -> 0.558110688 | D49: lb/hour | E49: =IF('Data Inputs'!P17<>2,"Not applicable - Ash disposal cost applies only to coal-fired boilers", " ") -> 

Sheet Cost Estimate
A1: Cost Estimate
A3: Total Capital Investment (TCI)
A5: For Coal-Fired Boilers:
A6: TCI = 1.3 x (SNCRcost + APHcost + BOPcost)
A7: For Fuel Oil and Natural Gas-Fired Boilers:
A8: TCI = 1.3 x (SNCRcost + BOPcost)
A10: Capital costs for the SNCR (SNCRcost) = | B10: =B27 -> 2311000 | C10: ="in "&'Data Inputs'!$C$47 & " dollars" -> in 2016 dollars
A11: Air Pre-Heater Costs (APHcost)* = | B11: =B36 -> 0 | C11: ="in "&'Data Inputs'!$C$47 & " dollars" -> in 2016 dollars
A12: Balance of Plant Costs (BOPcost) = | B12: =B49 -> 1995519.895 | C12: ="in "&'Data Inputs'!$C$47 & " dollars" -> in 2016 dollars
A13: Total Capital Investment (TCI) = | B13: =1.3*(SUM(B10:B12)) -> 5598475.864 | C13: ="in "&'Data Inputs'!$C$47 & " dollars" -> in 2016 dollars
A14: =IF(AND('Data Inputs'!P17=2,'Data Inputs'!V11=3),"* This factor applies because the boiler burns bituminous coal and emits eqaal to or greater than 0.3lb/MMBtu of sulfur dioxide. ", "* Not applicable - This factor applies only to coal-fired boilers that burn bituminous coal and emits equal to or greater than 0.3lb/MMBtu of sulfur dioxide.") -> * Not applicable - This factor applies only to coal-fired boilers that burn bituminous coal and emits equal to or greater than 0.3lb/MMBtu of sulfur dioxide.
A17: SNCR Capital Costs (SNCRcost)
A18: For Coal-Fired Utility Boilers:
A19: SNCRcost = 220,000 x (BMW x HRF)0.42 x CoalF x BTF x ELEVF x RF
A20: For Fuel Oil and Natural Gas-Fired Utility Boilers:
A21: SNCRcost = 147,000 x (BMW x HRF)0.42 x ELEVF x RF
A22: For Coal-Fired Industrial Boilers:
A23: SNCRcost = 220,000 x (0.1 x QB x HRF)0.42 x CoalF x BTF x ELEVF x RF
A24: For Fuel Oil and Natural Gas-Fired Industrial Boilers:
A25: SNCRcost = 147,000 x ((QB/NPHR)x HRF)0.42 x ELEVF x RF
A27: SNCR Capital Costs (SNCRcost) = | B27: 2311000 | C27: ="in "&'Data Inputs'!$C$47 & " dollars" -> in 2016 dollars | E27: ELEVF | F27: =IF('Data Inputs'!I31<500, 1,'SNCR Design Parameters'!C17) -> 1
A30: Air Pre-Heater Costs (APHcost)*
A31: For Coal-Fired Utility Boilers:
A32: APHcost = 69,000 x (BMW x HRF x CoalF)0.78 x AHF x RF
A33: For Coal-Fired Industrial Boilers:
A34: APHcost = 69,000 x (0.1 x QB x HRF x CoalF)0.78 x AHF x RF
A36: Air Pre-Heater Costs (APHcost) = | B36: =IF('Data Inputs'!P17=2,(69000*(((IF('Data Inputs'!P8=2,'Data Inputs'!C10,(0.1*'SNCR Design Parameters'!C6)))*'SNCR Design Parameters'!C9*'SNCR Design Parameters'!C15)^0.78)*(IF('Data Inputs'!V11=3,1,0))*('Data Inputs'!C48/'Data Inputs'!F48)*('SNCR Design Parameters'!C19)), 0) -> 0 | C36: ="in "&'Data Inputs'!$C$47 & " dollars" -> in 2016 dollars
A37: =IF(AND('Data Inputs'!P17=2,'Data Inputs'!V11=3),"* This factor applies because the boiler burns bituminous coal and emits equal to or greater than 0.3lb/MMBtu of sulfur dioxide. ", "* Not applicable - This factor applies only to coal-fired boilers that burn bituminous coal and emit equal to or greater than 0.3lb/MMBtu of sulfur dioxide.") -> * Not applicable - This factor applies only to coal-fired boilers that burn bituminous coal and emit equal to or greater than 0.3lb/MMBtu of sulfur dioxide.
A39: Balance of Plant Costs (BOPcost)
A40: For Coal-Fired Utility Boilers:
A41: BOPcost = 320,000 x (BMW)0.33 x (NOxRemoved/hr)0.12 x BTF x RF
A42: For Fuel Oil and Natural Gas-Fired Utility Boilers:
A43: BOPcost = 213,000 x (BMW)0.33 x (NOxRemoved/hr)0.12 x RF
A44: For Coal-Fired Industrial Boilers:
A45: BOPcost = 320,000 x (0.1 x QB)0.33 x (NOxRemoved/hr)0.12 x BTF x RF
A46: For Fuel Oil and Natural Gas-Fired Industrial Boilers:
A47: BOPcost = 213,000 x (QB/NPHR)0.33 x (NOxRemoved/hr)0.12 x RF
A49: Balance of Plan Costs (BOPcost) = | B49: =(IF('Data Inputs'!P8=2,(F50*(('Data Inputs'!C10)^0.33)*(('SNCR Design Parameters'!C13)^0.12)*'Cost Estimate'!F49),(F50*(F51^0.33)*(('SNCR Design Parameters'!C13)^0.12)*'Cost Estimate'!F49)))*('Data Inputs'!C48/'Data Inputs'!F48)*('SNCR Design Parameters'!C19) -> 1995519.895 | C49: ="in "&'Data Inputs'!$C$47 & " dollars" -> in 2016 dollars | F49: =IF('Data Inputs'!P25=2,0.75,1) -> 1 | G49: BTF
F50: =IF('Data Inputs'!P17=2,320000,213000) -> 320000
F51: =IF('Data Inputs'!P17=2,(0.1*'SNCR Design Parameters'!C6),('SNCR Design Parameters'!C6/'Data Inputs'!C18)) -> 23
A52: Annual Costs
A54: Total Annual Cost (TAC)
A55: TAC = Direct Annual Costs + Indirect Annual Costs
A57: Direct Annual Costs (DAC) = | B57: =C70 -> 136545.6999 | C57: ="in "&'Data Inputs'!$C$47 & " dollars" -> in 2016 dollars
A58: Indirect Annual Costs (IDAC) = | B58: =C77 -> 799616.3267 | C58: ="in "&'Data Inputs'!$C$47 & " dollars" -> in 2016 dollars
A59: Total annual costs (TAC) = DAC + IDAC | B59: =B57+B58 -> 936162.0266 | C59: ="in "&'Data Inputs'!$C$47 & " dollars" -> in 2016 dollars
A61: Direct Annual Costs (DAC)
A62: DAC = (Annual Maintenance Cost) + (Annual Reagent Cost) + (Annual Electricity Cost) + (Annual Water Cost) + (Annual Fuel Cost) + (Annual Ash Cost)
A64: Annual Maintenance Cost = | B64: ='Data Inputs'!C60&" x TCI =" -> 0.015 x TCI = | C64: ='Data Inputs'!C60*B13 -> 83977.13796 | D64: ="in "&'Data Inputs'!$C$47 & " dollars" -> in 2016 dollars
A65: Annual Reagent Cost = | B65: qsol x Costreag x top = | C65: ='Data Inputs'!C51*'SNCR Design Parameters'!C29*'SNCR Design Parameters'!C11 -> 49075.12207 | D65: ="in "&'Data Inputs'!$C$47 & " dollars" -> in 2016 dollars
A66: Annual Electricity Cost = | B66: P x Costelect x top = | C66: ='SNCR Design Parameters'!C40*'Data Inputs'!C53*'SNCR Design Parameters'!C11 -> 2764.927318 | D66: ="in "&'Data Inputs'!$C$47 & " dollars" -> in 2016 dollars
A67: Annual Water Cost = | B67: qwater x Costwater x top = | C67: ='SNCR Design Parameters'!C43*'Data Inputs'!C52*'SNCR Design Parameters'!C11 -> 0 | D67: ="in "&'Data Inputs'!$C$47 & " dollars" -> in 2016 dollars
A68: Additional Fuel Cost = | B68: ΔFuel x Costfuel x top = | C68: ='SNCR Design Parameters'!C46*'Data Inputs'!C50*'SNCR Design Parameters'!C11 -> 718.5538847 | D68: ="in "&'Data Inputs'!$C$47 & " dollars" -> in 2016 dollars
A69: Additional Ash Cost = | B69: ΔAsh x Costash x top x (1/2000) = | C69: =IF('Data Inputs'!P17=2,('SNCR Design Parameters'!C49*'SNCR Design Parameters'!C11*'Data Inputs'!C54*(1/2000)), 0) -> 9.958635929 | D69: ="in "&'Data Inputs'!$C$47 & " dollars" -> in 2016 dollars
A70: Direct Annual Cost = | C70: =SUM(C64:C69) -> 136545.6999 | D70: ="in "&'Data Inputs'!$C$47 & " dollars" -> in 2016 dollars
A72: Indirect Annual Cost (IDAC)
A73: IDAC = Administrative Charges + Capital Recovery Costs
A75: Administrative Charges (AC) = | B75: ='Data Inputs'!C61 &" x Annual Maintenance Cost =" -> 0.03 x Annual Maintenance Cost = | C75: ='Data Inputs'!C61*C64 -> 2519.314139 | D75: ="in "&'Data Inputs'!$C$47 & " dollars" -> in 2016 dollars
A76: Capital Recovery Costs (CR)= | B76: CRF x TCI = | C76: ='SNCR Design Parameters'!C35*B13 -> 797097.0126 | D76: ="in "&'Data Inputs'!$C$47 & " dollars" -> in 2016 dollars
A77: Indirect Annual Cost (IDAC) = | B77: AC + CR = | C77: =C75+C76 -> 799616.3267 | D77: ="in "&'Data Inputs'!$C$47 & " dollars" -> in 2016 dollars
A80: Cost Effectiveness
A82: Cost Effectiveness = Total Annual Cost/ NOx Removed/year
A84: Total Annual Cost (TAC) = | B84: =B59 -> 936162.0266 | C84: ="per year in "&'Data Inputs'!$C$47 & " dollars" -> per year in 2016 dollars
A85: NOx Removed = | B85: ='SNCR Design Parameters'!C14 -> 52.44 | C85: tons/year
A86: Cost Effectiveness = | B86: =B84/B85 -> 17852.06 | C86: ="per ton of NOx removed in "&'Data Inputs'!$C$47 & " dollars" -> per ton of NOx removed in 2016 dollars
